bitfinex/quotes_SOLUSD_20251002
["timestamp","ask_amount","ask_price","bid_price","bid_amount"]
[1759442151583,47.14813461,232.94,232.93,1e-08]
[1759442152589,47.14813461,232.94,232.93,0.72000001]
[1759442152765,47.14813461,232.94,232.93,1e-08]
[1759442153275,47.14813461,232.94,232.93,0.72000001]
[1759442153992,47.14813461,232.94,232.87,20.2]
[1759442153993,57.88051204,232.94,232.87,20.2]
[1759442154363,44.9853284,232.94,232.87,20.2]
[1759442154789,12.89462938,232.93,232.87,20.2]
[1759442154995,10.87647521,232.91,232.87,20.2]
[1759442155180,29.96,232.9,232.87,0.2]
[1759442155372,29.96,232.89,232.87,0.2]
[1759442155775,12.89684672,232.9,232.88,0.72]
[1759442155977,29.96,232.89,232.88,0.72]
[1759442156996,31.67957956,232.89,232.88,0.72]
[1759442157197,35.9734522,232.89,232.88,0.72]
[1759442158593,35.9734522,232.89,232.87,0.2]
[1759442158594,36.6234522,232.89,232.87,0.2]
[1759442158771,39.36616712,232.89,232.87,0.2]
[1759442158971,37.64658756,232.89,232.87,0.2]
[1759442159283,1.71972742,232.88,232.87,0.2]
[1759442159994,6.01378444,232.88,232.87,0.2]
[1759442160164,35.97378444,232.88,232.87,0.2]
[1759442160886,36.62378444,232.88,232.87,0.2]
[1759442161106,6.01378444,232.88,232.87,0.2]
[1759442161288,35.97378444,232.88,232.87,0.2]
[1759442162087,36.69378444,232.88,232.87,0.2]
[1759442162898,35.97378444,232.88,232.87,0.2]
[1759442165312,6.01378444,232.88,232.87,0.2]
[1759442165615,35.97378444,232.88,232.87,0.2]
[1759442166111,36.05776154,232.88,232.87,0.2]
[1759442166411,6.09776154,232.88,232.87,0.2]
[1759442166619,36.05776154,232.88,232.87,0.2]
[1759442167718,36.77776154,232.88,232.87,0.2]
[1759442168015,36.05776154,232.88,232.87,0.2]
[1759442168589,36.77776154,232.88,232.87,0.2]
[1759442169215,6.09776154,232.88,232.87,0.2]
[1759442169410,36.05776154,232.88,232.87,0.2]
[1759442169917,6.09776154,232.88,232.87,0.2]
[1759442170106,36.05776154,232.88,232.87,0.2]
[1759442170512,6.09776154,232.88,232.87,0.2]
[1759442170813,36.05776154,232.88,232.87,0.2]
[1759442174601,36.03776154,232.88,232.87,0.2]
[1759442174907,6.09776154,232.88,232.87,0.2]
[1759442175113,36.03776154,232.88,232.87,0.2]
[1759442175308,6.09776154,232.88,232.87,0.2]
[1759442175508,36.03776154,232.88,232.87,0.2]
[1759442175721,47.4929041,232.88,232.84,0.2]
[1759442176021,1.75765354,232.86,232.84,0.2]
[1759442176226,29.94,232.85,232.84,0.2]
[1759442176435,42.83851022,232.85,232.84,0.92]
[1759442176637,42.83851022,232.85,232.84,0.2]
[1759442176821,43.55851022,232.85,232.84,1e-08]
[1759442178435,17.91312048,232.85,232.84,1e-08]
[1759442178637,47.85312048,232.85,232.84,1e-08]
[1759442179339,60.48724923,232.85,232.84,1e-08]
[1759442179929,10.87647521,232.84,232.82,1e-08]
[1759442180133,31.69765354,232.83,232.82,1e-08]
[1759442180336,32.41765354,232.83,232.82,1e-08]
[1759442180527,38.43280385,232.83,232.82,1e-08]
[1759442182327,49.30927906,232.83,232.82,1e-08]
[1759442183136,48.58927906,232.83,232.82,1e-08]
[1759442183936,49.30927906,232.83,232.82,1e-08]
[1759442184143,48.58927906,232.83,232.82,1e-08]
[1759442185460,49.27927906,232.83,232.82,1e-08]
[1759442186139,49.36778142,232.83,232.82,1e-08]
[1759442186641,49.38778142,232.83,232.82,1e-08]
[1759442186845,49.38778142,232.83,232.82,0.71000001]
[1759442186846,6.10365267,232.83,232.82,0.71000001]
[1759442187049,36.06365267,232.83,232.82,0.71000001]
[1759442188664,4.38348152,232.83,232.82,20.71000001]
[1759442190946,0.08850236,232.83,232.82,20.71000001]
[1759442191139,4.38348152,232.83,232.82,20.71000001]
[1759442194459,4.38348152,232.83,232.82,20.00000001]
[1759442194657,4.38348152,232.83,232.82,1e-08]
[1759442194869,8.85302385,232.83,232.82,1e-08]
[1759442197752,4.38348152,232.83,232.82,0.71000001]
[1759442197953,4.38348152,232.83,232.82,1e-08]
[1759442198756,4.38348152,232.83,232.82,0.71000001]
[1759442198960,4.38348152,232.83,232.82,1e-08]
[1759442202342,6.10343078,232.83,232.82,1e-08]
[1759442205170,6.10343078,232.83,232.82,0.71000001]
[1759442206063,6.18345414,232.83,232.82,0.71000001]
[1759442207379,6.09495178,232.83,232.82,0.71000001]
[1759442207762,4.37500252,232.83,232.82,20.71000001]
[1759442210572,0.08002336,232.83,232.82,20.71000001]
[1759442215682,4.37500252,232.83,232.82,20.71000001]
[1759442219398,4.37500252,232.83,232.82,20.00000001]
[1759442220205,4.37500252,232.83,232.82,20.71000001]
[1759442220702,0.08002336,232.83,232.82,20.71000001]
[1759442225530,4.37500252,232.83,232.82,20.71000001]
[1759442226110,4.46647478,232.83,232.82,20.71000001]
[1759442227309,4.38645142,232.83,232.82,20.71000001]
[1759442231905,4.38645142,232.83,232.82,20.00000001]
[1759442232230,0.09147226,232.83,232.82,20.72000001]
[1759442232529,0.09147226,232.83,232.82,50.66000001]
[1759442233631,4.38645142,232.83,232.82,50.66000001]
[1759442234032,4.38645142,232.83,232.82,20.72000001]
[1759442234227,4.38645142,232.83,232.82,50.66000001]
[1759442234930,0.09147226,232.83,232.82,50.66000001]
[1759442235612,0.09147226,232.83,232.82,61.53647522]
[1759442235802,0.09147226,232.83,232.82,65.83163886]
[1759442236008,0.09147226,232.83,232.82,67.55077499]
[1759442246237,0.1825443,232.83,232.82,67.55077499]
[1759442247067,0.1825443,232.83,232.82,21.71913614]
[1759442247271,0.80107204,232.83,232.82,51.63913614]
[1759442248564,0.09107204,232.83,232.82,51.63913614]
[1759442248955,0.09107204,232.83,232.82,56.63429978]
[1759442253458,0.09107204,232.83,232.82,67.51077499]
[1759442260889,0.09107204,232.83,232.82,36.89077499]
[1759442261098,0.09107204,232.83,232.82,66.81077499]
[1759442261883,0.09107204,232.83,232.82,67.50077499]
[1759442264882,0.09107204,232.83,232.82,67.93029135]
[1759442266174,0.17838313,232.83,232.82,67.93029135]
[1759442267209,0.08731109,232.83,232.82,67.93029135]
[1759442274114,1e-08,232.84,232.83,10.87647521]
[1759442274315,1e-08,232.84,232.83,11.56647521]
[1759442274518,1e-08,232.85,232.84,30.87647521]
[1759442274712,1e-08,232.85,232.84,61.89595468]
[1759442275405,1e-08,232.85,232.84,63.61442609]
[1759442277228,1e-08,232.85,232.84,67.90922079]
[1759442278224,1e-08,232.86,232.85,10.87647521]
[1759442278521,0.0817998,232.89,232.87,31.67647521]
[1759442278720,1e-08,232.88,232.87,82.00589935]
[1759442278917,1e-08,232.88,232.87,82.69589935]
[1759442279324,1e-08,232.88,232.87,86.99014077]
[1759442279526,1e-08,232.88,232.87,88.70839073]
[1759442279823,1e-08,232.88,232.87,108.70839073]
[1759442280027,1e-08,232.88,232.87,108.27896659]
[1759442281231,1e-08,232.88,232.87,88.27896659]
[1759442281462,1e-08,232.88,232.87,108.70839073]
[1759442281625,1e-08,232.88,232.87,108.27896659]
[1759442282032,1e-08,232.89,232.88,10.87647521]
[1759442282244,1e-08,232.92,232.91,71.67647521]
[1759442282555,1e-08,232.92,232.91,102.0058256]
[1759442282760,1e-08,232.92,232.91,102.22647521]
[1759442283051,1e-08,232.92,232.91,112.97512664]
[1759442283835,1e-08,232.92,232.91,83.07512664]
[1759442284123,1e-08,232.92,232.91,117.26863056]
[1759442284454,1e-08,232.92,232.91,87.36863056]
[1759442284624,1e-08,232.92,232.91,117.26863056]
[1759442287452,0.69,232.97,232.96,30.87647521]
[1759442287666,4.29079912,233.06,233.0,31.67647521]
[1759442287851,0.1,233.07,233.04,20.8]
[1759442288049,4.39055648,233.07,233.06,20.0]
[1759442288728,5.08055648,233.07,233.06,20.0]
[1759442292059,0.79,233.07,233.06,20.0]
[1759442298081,5.08055648,233.07,233.06,49.88]
[1759442299378,5.08055648,233.07,233.06,20.0]
[1759442299689,5.08055648,233.07,233.06,49.88]
[1759442306190,5.17108631,233.07,233.06,49.88]
[1759442306875,5.17108631,233.07,233.06,20.0]
[1759442307069,5.17108631,233.07,233.06,49.88]
[1759442311692,5.17108631,233.07,233.06,20.0]
[1759442311875,5.17108631,233.07,233.06,49.88]
[1759442313590,5.20108631,233.07,233.06,49.88]
[1759442322783,4.48108631,233.07,233.06,49.88]
[1759442325806,4.48108631,233.07,233.06,20.0]
[1759442326009,15.92747752,233.07,233.03,20.0]
[1759442326210,0.72,233.06,233.01,20.0]
[1759442326507,0.72,233.05,233.01,20.0]
[1759442326716,0.72,233.04,233.03,20.0]
[1759442327300,5.01110882,233.04,233.03,20.0]
[1759442329302,15.73888087,233.04,233.01,20.0]
[1759442329612,0.72,233.03,233.01,20.0]
[1759442329820,0.72,233.02,233.01,20.0]
[1759442330192,15.01888087,233.04,233.01,20.0]
[1759442330390,0.72,233.03,233.01,20.0]
[1759442330792,0.72,233.02,233.01,20.0]
[1759442331011,0.72,233.02,232.97,20.0]
[1759442331201,0.72,233.01,232.97,20.0]
[1759442331401,0.72,233.0,232.97,20.0]
[1759442331614,0.72,232.99,232.97,20.0]
[1759442331807,0.72,232.98,232.97,20.0]
[1759442332001,0.72,232.98,232.95,20.0]
[1759442332217,0.72,232.97,232.95,20.0]
[1759442332516,5.01258241,232.96,232.95,20.0]
[1759442335916,10.73063555,232.98,232.95,20.0]
[1759442336123,4.2920297,232.99,232.97,20.0]
[1759442336321,4.2920297,232.99,232.97,20.66]
[1759442337217,15.02145922,233.0,232.97,20.66]
[1759442337617,15.74145922,233.0,232.97,20.66]
[1759442337800,15.02145922,233.0,232.97,20.0]
[1759442338026,0.72,232.99,232.97,20.0]
[1759442338326,4.29221392,232.98,232.97,20.0]
[1759442338533,5.01221392,232.98,232.97,20.0]
[1759442340620,11.44961373,233.0,232.97,20.0]
[1759442340926,0.72,232.99,232.97,20.0]
[1759442341529,10.72961373,233.0,232.94,20.0]
[1759442341530,2.47345241,232.98,232.94,20.0]
[1759442341823,2.47345241,232.98,232.88,20.8]
[1759442341824,1.75345241,232.96,232.9,20.0]
[1759442342121,0.72,232.95,232.9,20.66]
[1759442342328,0.72,232.94,232.92,20.0]
[1759442343497,4.29313527,232.93,232.92,20.0]
[1759442345135,4.29292469,232.95,232.94,20.0]
[1759442345324,4.29292469,232.95,232.94,20.66]
[1759442345701,4.29239816,232.97,232.94,20.66]
[1759442345921,4.29239816,232.97,232.96,20.0]
[1759442346227,4.37868256,232.97,232.96,20.0]
[1759442348015,15.10967796,232.97,232.94,20.0]
[1759442348216,15.10967796,232.97,232.96,20.0]
[1759442348420,15.10967796,232.97,232.94,20.0]
[1759442348727,15.10967796,232.97,232.92,20.0]
[1759442348728,0.72,232.96,232.92,20.0]
[1759442349028,0.72,232.95,232.92,20.0]
[1759442350722,5.01295097,232.94,232.92,20.0]
[1759442351029,0.72,232.93,232.92,20.0]
[1759442351908,5.01313527,232.93,232.92,20.0]
[1759442356443,4.29313527,232.93,232.92,20.0]
[1759442357038,20.8,232.9,232.82,1e-08]
[1759442357348,2.74461495,232.88,232.82,1e-08]
[1759442357530,15.02984497,232.87,232.82,1e-08]
[1759442357736,45.10984497,232.87,232.83,0.66]
[1759442357941,1.71965348,232.86,232.83,0.66]
[1759442358648,1.71965348,232.86,232.84,0.66]
[1759442359233,4.29461026,232.85,232.82,0.66000001]
[1759442359446,4.29461026,232.85,232.83,0.66]
[1759442360152,6.01426374,232.85,232.83,0.66]
[1759442360537,16.7507894,232.85,232.82,1e-08]
[1759442360853,15.03113592,232.85,232.82,0.66000001]
[1759442361048,16.7507894,232.85,232.82,0.66000001]
[1759442361436,17.4707894,232.85,232.82,1e-08]
[1759442363747,17.4707894,232.85,232.82,0.66000001]
[1759442363748,16.7507894,232.85,232.82,0.66000001]
[1759442364049,17.4707894,232.85,232.82,0.66000001]
[1759442364358,17.4707894,232.85,232.82,1e-08]
[1759442364751,16.7507894,232.85,232.83,0.69]
[1759442364930,4.29461026,232.85,232.84,0.69]
[1759442365329,4.29461026,232.85,232.82,1e-08]
[1759442365661,4.29461026,232.85,232.82,0.69000001]
[1759442366167,0.08011966,232.83,232.82,0.69000001]
[1759442366323,0.08011966,232.83,232.82,1e-08]
[1759442366528,0.08011966,232.83,232.82,0.69000001]
[1759442368636,4.37509882,232.83,232.82,0.69000001]
[1759442369666,35.10509882,232.83,232.82,1e-08]
[1759442370154,36.82497412,232.83,232.82,1e-08]
[1759442371134,36.82497412,232.83,232.8,1e-08]
[1759442371135,2.74461495,232.82,232.8,1e-08]
[1759442371549,0.67,232.81,232.8,1e-08]
[1759442371751,2.38994926,232.81,232.8,1e-08]
[1759442372756,17.42366773,232.81,232.78,1e-08]
[1759442372961,2.74461495,232.79,232.78,1e-08]
[1759442373487,5.13486008,232.79,232.77,1e-08]
[1759442373976,3.41461495,232.79,232.77,1e-08]
[1759442374173,6.0162948,232.78,232.77,1e-08]
[1759442374559,6.6862948,232.78,232.77,1e-08]
[1759442375574,9.43090975,232.78,232.77,1e-08]
[1759442376980,39.51090975,232.78,232.77,1e-08]
[1759442383487,2.74461495,232.74,232.72,0.2]
[1759442383782,30.06,232.73,232.72,0.2]
[1759442383960,30.73,232.73,232.72,0.2]
[1759442384282,32.45068913,232.73,232.72,0.2]
[1759442384495,35.19530408,232.73,232.72,0.2]
[1759442384987,39.49212872,232.73,232.72,0.2]
[1759442385155,36.74751377,232.73,232.72,0.2]
[1759442385358,34.35682464,232.73,232.72,0.89]
[1759442385886,34.35682464,232.73,232.72,0.2]
[1759442386066,34.44174589,232.73,232.72,0.2]
[1759442386792,36.182361,232.73,232.72,0.2]
[1759442387096,36.162361,232.73,232.72,0.2]
[1759442388393,34.44174589,232.73,232.72,0.2]
[1759442389182,35.11174589,232.73,232.72,0.2]
[1759442389381,37.85636084,232.73,232.72,0.2]
[1759442389596,39.57719802,232.73,232.72,0.2]
[1759442391073,39.57719802,232.73,232.72,1e-08]
[1759442391865,36.83258307,232.73,232.72,1e-08]
[1759442392068,39.57719802,232.73,232.72,1e-08]
[1759442392486,39.59719802,232.73,232.72,1e-08]
[1759442395701,9.51719802,232.73,232.72,1e-08]
[1759442396296,39.57719802,232.73,232.72,1e-08]
[1759442396796,6.10258307,232.73,232.72,1e-08]
[1759442396988,38.90719802,232.73,232.72,1e-08]
[1759442397799,6.10258307,232.73,232.72,1e-08]
[1759442398092,6.10258307,232.73,232.72,0.69000001]
[1759442398294,36.16258307,232.73,232.72,0.69000001]
[1759442400577,34.44174589,232.73,232.72,0.69000001]
[1759442400801,35.11174589,232.73,232.72,1e-08]
[1759442401001,37.18636084,232.73,232.72,1e-08]
[1759442401178,38.90697595,232.73,232.72,1e-08]
[1759442401528,37.85636084,232.73,232.72,1e-08]
[1759442401732,39.57712399,232.73,232.72,1e-08]
[1759442402706,39.57712399,232.73,232.69,0.2]
[1759442402707,50.3191856,232.73,232.69,0.2]
[1759442402911,2.74461495,232.71,232.69,0.2]
[1759442403218,32.80461495,232.7,232.69,0.2]
[1759442403412,33.50461495,232.7,232.69,0.2]
[1759442403610,35.22552617,232.7,232.69,0.2]
[1759442404029,34.52552617,232.7,232.69,0.2]
[1759442404611,38.82290476,232.7,232.69,0.2]
[1759442406241,38.90128614,232.7,232.69,0.2]
[1759442406619,36.15667119,232.7,232.69,0.2]
[1759442406820,47.60011768,232.7,232.67,0.2]
[1759442407031,30.06,232.69,232.67,0.89]
[1759442407224,16.84011768,232.7,232.68,0.69]
[1759442407634,16.84011768,232.7,232.67,0.2]
[1759442407940,4.37575997,232.7,232.67,0.2]
[1759442408239,4.37575997,232.7,232.68,0.69]
[1759442410943,4.37575997,232.7,232.69,0.69]
[1759442412942,16.87913472,232.7,232.67,0.2]
[1759442413114,30.76,232.69,232.67,0.2]
[1759442413921,0.7,232.68,232.67,0.2]
[1759442414241,30.76,232.69,232.67,0.2]
[1759442414920,4.29774798,232.68,232.67,0.2]
[1759442415120,4.99774798,232.68,232.67,0.2]
[1759442415631,4.29774798,232.68,232.67,0.2]
[1759442417028,4.99774798,232.68,232.67,0.2]
[1759442417537,4.29774798,232.68,232.67,0.2]
[1759442418751,4.29774798,232.68,232.67,0.89]
[1759442418956,34.37774798,232.68,232.67,0.89]
[1759442419135,4.29774798,232.68,232.67,0.89]
[1759442419455,34.37774798,232.68,232.67,0.89]
[1759442421427,35.07774798,232.68,232.67,0.2]
[1759442421623,36.83767624,232.68,232.67,0.2]
[1759442421828,35.07774798,232.68,232.67,1e-08]
[1759442422148,36.83767624,232.68,232.67,1e-08]
[1759442423426,35.07774798,232.68,232.67,1e-08]
[1759442423655,36.83767624,232.68,232.67,1e-08]
[1759442424235,6.75767624,232.68,232.67,1e-08]
[1759442424663,36.83767624,232.68,232.67,1e-08]
[1759442425030,6.75767624,232.68,232.67,1e-08]
[1759442425257,36.83767624,232.68,232.67,1e-08]
[1759442426041,34.37774798,232.68,232.67,0.68000001]
[1759442426235,4.39204692,232.68,232.67,0.68000001]
[1759442426436,34.47204692,232.68,232.67,0.68000001]
[1759442427463,34.47204692,232.68,232.67,1e-08]
[1759442428348,4.39204692,232.68,232.67,0.68000001]
[1759442429358,4.39204692,232.68,232.67,1e-08]
[1759442433171,4.39204692,232.68,232.67,0.67000001]
[1759442433669,34.45204692,232.68,232.67,1e-08]
[1759442435473,34.45204692,232.68,232.67,0.67000001]
[1759442435651,34.45204692,232.68,232.67,1e-08]
[1759442436341,34.43204692,232.68,232.67,1e-08]
[1759442437047,4.39204692,232.68,232.67,0.67000001]
[1759442443953,0.09429894,232.68,232.67,0.67000001]
[1759442444300,0.09429894,232.68,232.67,32.34647522]
[1759442444576,0.09429894,232.68,232.67,36.64440791]
[1759442444779,0.09429894,232.68,232.67,38.36457906]
[1759442445688,0.09429894,232.68,232.67,36.64440791]
[1759442446062,0.17738513,232.68,232.67,36.64440791]
[1759442446696,0.17738513,232.68,232.67,38.36457906]
[1759442446894,0.17738513,232.68,232.67,68.40457906]
[1759442447306,0.08308619,232.68,232.67,68.40457906]
[1759442450131,0.08599063,232.7,232.69,30.87647521]
[1759442450347,0.08066774,232.71,232.7,10.87647521]
[1759442450499,0.08066774,232.71,232.7,31.54647521]
[1759442450899,1e-08,232.71,232.7,35.8438538]
[1759442451124,1e-08,232.71,232.7,65.8838538]
[1759442452494,1e-08,232.71,232.7,65.9038538]
[1759442454932,1e-08,232.72,232.7,70.59304151]
[1759442455126,1e-08,232.72,232.71,11.9761946]
[1759442455323,0.69,232.85,232.73,30.87647521]
[1759442455720,0.69,232.85,232.73,31.54647521]
[1759442456137,0.69,232.85,232.73,61.58647521]
[1759442457136,0.69,232.85,232.73,63.30568523]
[1759442459047,0.69,232.85,232.74,15.17311523]
[1759442459343,0.69,232.85,232.74,15.84311523]
[1759442459530,1e-08,232.77,232.76,10.87647521]
[1759442459729,1e-08,232.77,232.76,40.91647521]
[1759442459937,1e-08,232.77,232.76,45.88274604]
[1759442460145,1e-08,232.77,232.76,15.84274604]
[1759442460372,1e-08,232.77,232.76,50.37606981]
[1759442466337,1e-08,232.77,232.76,50.80569689]
[1759442467640,1e-08,232.78,232.77,30.87647521]
[1759442467966,0.07868283,232.81,232.8,10.87647521]
[1759442468262,0.07868283,232.81,232.8,106.67647521]
[1759442468463,0.07868283,232.81,232.8,41.58647521]
[1759442468759,0.07868283,232.81,232.8,43.7347214]
[1759442469763,0.07868283,232.81,232.8,48.03025404]
[1759442470133,0.08354746,232.84,232.8,48.03025404]
[1759442470362,0.08354746,232.84,232.83,31.67647521]
[1759442470564,0.08354746,232.84,232.83,40.87647521]
[1759442470746,0.08354746,232.84,232.83,41.58647521]
[1759442470949,0.08764601,232.86,232.84,10.87647521]
[1759442471156,0.08764601,232.86,232.84,11.58647521]
[1759442472169,0.08764601,232.86,232.84,16.31074938]
[1759442473069,0.08764601,232.86,232.85,30.87647521]
[1759442473267,0.9,232.92,232.9,10.87647521]
[1759442473452,0.9,232.92,232.91,40.87647521]
[1759442473766,0.2,232.92,232.91,40.87647521]
[1759442474271,0.2,232.92,232.91,45.16997913]
[1759442476967,0.2,232.92,232.91,45.87997913]
[1759442477265,1e-08,232.92,232.91,65.87997913]
[1759442477843,1e-08,232.92,232.91,78.85326563]
[1759442479061,1e-08,232.92,232.91,65.87997913]
[1759442481688,1e-08,232.92,232.91,65.85997913]
[1759442482051,1e-08,232.92,232.91,78.72502605]
[1759442482970,1e-08,232.92,232.91,48.74502605]
[1759442483173,1e-08,232.92,232.91,78.72502605]
[1759442483958,1e-08,232.92,232.91,48.74502605]
[1759442484217,1e-08,232.92,232.91,78.72502605]
[1759442487049,1e-08,232.93,232.92,15.1697948]
[1759442487250,1e-08,232.93,232.92,15.59912675]
[1759442487474,1e-08,232.93,232.92,16.28912675]
[1759442487949,1e-08,232.93,232.92,18.0068602]
[1759442489574,0.70000001,232.93,232.92,17.3168602]
[1759442489776,0.70000001,232.93,232.92,46.86752825]
[1759442490079,0.70000001,232.93,232.92,15.1697948]
[1759442490374,0.70000001,232.93,232.92,45.1497948]
[1759442491474,0.70000001,232.93,232.92,110.9497948]
[1759442498183,0.70000001,232.93,232.92,45.1497948]
[1759442499586,1e-08,232.93,232.92,45.1497948]
[1759442499786,0.72000001,232.93,232.92,45.1497948]
[1759442501266,1e-08,232.93,232.92,45.8397948]
[1759442501471,0.08385242,232.96,232.95,10.87647521]
[1759442501673,0.08385242,232.96,232.95,40.83647521]
[1759442501897,0.08385242,232.96,232.95,41.52647521]
[1759442502389,0.08385242,232.96,232.95,43.24406114]
[1759442503096,0.08475488,232.97,232.95,47.53682782]
[1759442503291,1e-08,233.0,232.99,10.87647521]
[1759442503488,1e-08,233.01,233.0,30.87647521]
[1759442503671,1e-08,233.02,233.01,10.87647521]
[1759442503870,1e-08,233.02,233.01,41.54647521]
[1759442505189,1e-08,233.02,233.01,45.83813651]
[1759442505890,1e-08,233.02,233.01,45.14813651]
[1759442506067,0.08085885,233.02,233.01,45.14813651]
[1759442506271,1e-08,233.02,233.01,45.83813651]
[1759442506595,1e-08,233.02,233.01,46.26730264]
[1759442512302,1e-08,233.02,233.01,47.96437246]
[1759442516099,0.09400936,233.03,233.01,47.96437246]
[1759442516100,1e-08,233.03,233.02,30.87647521]
[1759442516702,1e-08,233.03,233.02,31.56647521]
[1759442516908,1e-08,233.03,233.02,33.28354503]
[1759442518995,1e-08,233.03,233.02,36.88502215]
[1759442519511,1e-08,233.03,233.02,37.57502215]
[1759442520116,1e-08,233.03,233.02,36.88502215]
[1759442520518,1e-08,233.03,233.02,37.57502215]
[1759442521093,1e-08,233.03,233.02,16.88502215]
[1759442521296,0.09431045,233.05,233.04,31.67647521]
[1759442521596,0.09431045,233.05,233.04,40.79647521]
[1759442522605,0.09431045,233.05,233.04,42.51347132]
[1759442523704,0.09431045,233.05,233.04,46.80458014]
[1759442523902,0.09431045,233.05,233.04,35.92810493]
[1759442524721,1e-08,233.06,233.05,10.87647521]
[1759442525018,1e-08,233.07,233.05,41.93556767]
[1759442525226,1e-08,233.07,233.06,11.58647521]
[1759442525588,1e-08,233.07,233.06,13.30325024]
[1759442527089,1e-08,233.07,233.06,17.59399082]
[1759442527494,1e-08,233.07,233.06,6.71751561]
[1759442529417,1e-08,233.07,233.06,16.88399082]
[1759442530718,1e-08,233.07,233.06,17.59399082]
[1759442531421,1e-08,233.07,233.06,37.59399082]
[1759442532337,1e-08,233.08,233.07,10.87647521]
[1759442532503,1e-08,233.16,233.15,51.67647521]
[1759442532699,1e-08,233.16,233.15,87.21380253]
[1759442533121,1e-08,233.16,233.15,88.92984105]
[1759442533305,1e-08,233.16,233.15,92.33432505]
[1759442534015,0.69000001,233.16,233.15,42.35432505]
[1759442534202,0.69000001,233.16,233.15,46.64340933]
[1759442534524,0.69000001,233.16,233.15,76.64340933]
[1759442535600,0.69000001,233.16,233.15,46.64340933]
[1759442535828,0.69000001,233.16,233.15,76.64340933]
[1759442537810,1e-08,233.16,233.15,76.64340933]
[1759442539237,0.69000001,233.16,233.15,76.64340933]
[1759442540048,1e-08,233.16,233.15,76.64340933]
[1759442542042,0.69000001,233.16,233.15,71.06608201]
[1759442542563,0.69000001,233.16,233.15,41.08608201]
[1759442542767,0.69000001,233.16,233.15,37.68159801]
[1759442543069,0.69000001,233.16,233.15,63.37251373]
[1759442543260,0.69000001,233.16,233.15,42.57251373]
[1759442543437,0.69000001,233.16,233.15,40.85647521]
[1759442543632,0.69000001,233.16,233.15,10.87647521]
[1759442543957,0.69000001,233.16,233.15,40.85647521]
[1759442545172,0.69000001,233.16,233.15,45.14555949]
[1759442546272,0.77481658,233.16,233.15,45.14555949]
[1759442547234,0.77481657,233.16,233.15,45.14555949]
[1759442556154,0.77481657,233.16,233.15,40.85647521]
[1759442556355,0.77481657,233.16,233.14,10.87647521]
[1759442556557,0.08481657,233.16,233.15,40.81647521]
[1759442557199,0.77481657,233.16,233.12,20.8]
[1759442557361,0.08481657,233.16,233.15,20.8]
[1759442557562,0.08481657,233.16,233.15,50.74]
[1759442558062,5.06371689,233.16,233.08,10.87647521]
[1759442558268,4.97917181,233.15,233.11,1.71684872]
[1759442558457,0.69,233.14,233.12,29.94]
[1759442558656,4.28917181,233.15,233.12,29.94]
[1759442558657,0.69,233.13,233.12,29.94]
[1759442560274,4.97945223,233.13,233.12,29.94]
[1759442560464,4.97945223,233.13,233.1,20.8]
[1759442560666,0.69,233.12,233.11,29.94]
[1759442562864,4.97963623,233.12,233.11,29.94]
[1759442563498,4.97963623,233.12,233.02,0.71]
[1759442563698,4.97963623,233.12,233.06,20.8]
[1759442564004,0.69,233.11,233.1,20.8]
[1759442564313,4.29000429,233.1,233.09,29.94]
[1759442564472,4.98000429,233.1,233.09,29.94]
[1759442564673,4.98000429,233.1,233.01,4.29148985]
[1759442565017,0.69,233.09,233.02,29.94]
[1759442565375,0.69,233.08,233.02,29.94]
[1759442565593,15.01501501,233.1,233.02,29.94]
[1759442565594,0.69,233.07,233.02,29.94]
[1759442565903,0.69,233.06,233.05,20.8]
[1759442566110,0.08699198,233.03,233.02,29.94]
[1759442566788,0.77699198,233.03,233.02,29.94]
[1759442569318,0.08699198,233.03,233.02,30.65]
[1759442569527,0.08699198,233.03,233.02,29.94]
[1759442570184,0.08699198,233.03,233.02,34.23147712]
[1759442572313,0.08699198,233.03,233.02,45.81795233]
[1759442572831,0.08699198,233.03,233.02,47.53539077]
[1759442575109,0.08753852,233.04,233.03,10.87647521]
[1759442575302,0.08753852,233.04,233.03,11.58647521]